bitfinex/quotes_SOLUSD_20251127
["timestamp","ask_amount","ask_price","bid_price","bid_amount"]
[1764283819348,3.14,140.98,140.97,7.09370788]
[1764283819547,3.14,140.98,140.97,11.41707501]
[1764283819962,19.90835781,141.03,140.97,11.41707501]
[1764283820170,19.90835781,141.03,140.98,4.32336713]
[1764283820171,3.14,141.02,140.98,4.32336713]
[1764283820572,3.14,141.02,140.99,0.66]
[1764283820758,3.14,141.02,140.99,4.32336713]
[1764283821274,3.14,141.02,140.99,7.7522743]
[1764283821471,3.14,141.02,140.99,11.41564143]
[1764283821648,3.14,141.02,140.99,7.7522743]
[1764283822452,0.67,141.01,140.98,7.09306368]
[1764283822653,9.47994492,141.01,140.97,7.09354348]
[1764283822866,10.36640687,141.01,140.97,7.09354348]
[1764283823067,3.81,141.0,140.97,7.09354348]
[1764283823274,3.81,141.0,140.95,0.66]
[1764283823583,3.81,141.0,140.94,3.66336713]
[1764283823584,13.14331205,140.99,140.94,7.09521782]
[1764283823761,0.67,140.98,140.94,10.75858495]
[1764283823962,0.67,140.98,140.93,17.73875302]
[1764283823963,3.14,140.97,140.93,7.09556458]
[1764283824362,0.67,140.96,140.93,7.09556458]
[1764283824577,3.14,140.97,140.94,4.32336713]
[1764283824885,3.14,140.96,140.95,3.66336713]
[1764283825058,3.14,140.96,140.95,4.32336713]
[1764283825380,3.14,140.96,140.95,11.41808156]
[1764283825679,3.14,140.96,140.95,29.15486765]
[1764283826503,26.67527087,141.01,140.95,29.15486765]
[1764283826661,3.14,141.0,140.96,4.32336713]
[1764283827173,3.14,140.99,140.97,0.66]
[1764283828060,3.14,140.99,140.95,4.32336713]
[1764283828376,3.14,140.99,140.95,3.66336713]
[1764283828571,3.14,140.99,140.96,0.66]
[1764283828774,0.67,141.0,140.97,7.09370788]
[1764283828980,3.14,140.98,140.97,7.09370788]
[1764283829768,7.47336713,140.98,140.95,7.09427814]
[1764283829985,0.67,140.97,140.93,7.09572128]
[1764283830188,4.33336713,140.97,140.93,7.09572128]
[1764283830573,0.67,140.96,140.93,7.09572128]
[1764283830773,3.14,140.95,140.91,24.83786871]
[1764283831180,3.81,140.95,140.91,25.49786871]
[1764283831695,3.81,140.95,140.92,0.66]
[1764283832398,3.81,140.95,140.93,7.09572128]
[1764283832700,3.81,140.95,140.92,7.09604208]
[1764283832866,0.67,140.94,140.91,7.09656646]
[1764283834269,0.67,140.94,140.9,7.09704662]
[1764283834587,0.67,140.94,140.89,4.32336713]
[1764283835186,7.76522113,140.94,140.89,4.32336713]
[1764283835505,0.67,140.93,140.89,4.32336713]
[1764283835693,3.14,140.92,140.89,4.32336713]
[1764283835891,3.14,140.92,140.89,0.66]
[1764283836904,3.14,140.92,140.89,7.75727435]
[1764283837579,1.55677639,140.96,140.9,4.32336713]
[1764283837773,11.94994492,140.95,140.9,4.32336713]
[1764283837977,11.94994492,140.95,140.91,0.66]
[1764283838203,12.61994492,140.95,140.91,0.66]
[1764283838981,12.61994492,140.95,140.92,7.0962248]
[1764283839582,0.67,140.94,140.92,7.0962248]
[1764283840599,0.67,140.94,140.91,7.75654608]
[1764283841689,1.55690222,140.94,140.91,7.09654608]
[1764283842479,1.55690222,140.94,140.91,7.78654608]
[1764283844384,0.67,140.94,140.91,7.78654608]
[1764283847010,3.14,140.93,140.92,4.35336713]
[1764283847228,3.14,140.93,140.92,3.66336713]
[1764283847908,3.14,140.93,140.92,4.35336713]
[1764283849517,3.14,140.93,140.92,11.44959193]
[1764283850517,3.14,140.93,140.92,10.13371705]
[1764283851310,3.14,140.93,140.92,7.7862248]
[1764283851510,3.79,140.93,140.91,7.09652565]
[1764283852406,3.14,140.93,140.91,7.09652565]
[1764283853419,3.14,140.93,140.9,7.78702993]
[1764283853420,3.79,140.93,140.9,7.78702993]
[1764283855016,0.65,140.92,140.9,7.09702993]
[1764283856115,3.14,140.93,140.9,7.09702993]
[1764283856316,3.79,140.93,140.9,7.09702993]
[1764283857930,3.79,140.93,140.89,7.09773582]
[1764283858135,3.79,140.93,140.89,7.78773582]
[1764283858461,3.79,140.93,140.89,7.09773582]
[1764283858626,3.79,140.93,140.89,7.78773582]
[1764283859614,3.79,140.93,140.89,10.13522807]
[1764283860509,3.79,140.93,140.89,7.78773582]
[1764283860710,3.79,140.93,140.89,10.13522807]
[1764283862737,3.14,140.93,140.89,10.13522807]
[1764283863032,0.65,140.92,140.89,10.13522807]
[1764283863435,3.79,140.93,140.89,10.13522807]
[1764283863648,3.79,140.93,140.9,7.78705524]
[1764283866951,3.14,140.92,140.91,7.78669315]
[1764283867662,3.14,140.92,140.9,7.78702803]
[1764283868254,3.14,140.92,140.91,0.69]
[1764283868849,3.14,140.92,140.91,7.7867284]
[1764283869647,3.14,140.92,140.9,7.09704986]
[1764283869845,0.65,140.91,140.88,7.0977897]
[1764283870650,0.65,140.91,140.88,7.7977897]
[1764283871346,0.65,140.91,140.82,8.90994492]
[1764283871347,10.09441719,140.91,140.82,0.1]
[1764283871552,15.86439873,140.9,140.84,0.7]
[1764283871888,8.80994492,140.88,140.84,0.7]
[1764283872176,3.14,140.87,140.84,0.7]
[1764283873161,3.14,140.87,140.84,3.04749225]
[1764283873472,3.14,140.87,140.85,7.0997515]
[1764283873670,3.14,140.87,140.85,7.7997515]
[1764283879982,3.14,140.87,140.84,7.8002556]
[1764283880468,3.14,140.87,140.85,0.7]
[1764283880866,17.48448973,140.9,140.85,0.7]
[1764283881181,3.83,140.89,140.85,0.7]
[1764283881383,16.79448973,140.9,140.85,0.7]
[1764283881583,3.14,140.89,140.85,3.04749225]
[1764283881879,3.14,140.88,140.87,2.34749225]
[1764283882067,3.14,140.88,140.87,9.44623577]
[1764283882260,3.14,140.88,140.87,27.89309457]
[1764283883670,0.69,140.95,140.87,27.89309457]
[1764283883881,3.14,140.94,140.89,2.34749225]
[1764283884087,3.14,140.94,140.9,24.84031226]
[1764283884376,3.83,140.94,140.9,25.54031226]
[1764283884583,0.69,140.93,140.9,25.54031226]
[1764283885385,3.83,140.94,140.9,25.54031226]
[1764283886378,0.69,140.94,140.9,25.54031226]
[1764283886686,3.14,140.93,140.9,25.54031226]
[1764283888664,3.83,140.93,140.9,25.54031226]
[1764283892373,3.14,140.94,140.91,3.04749225]
[1764283892573,3.14,140.94,140.92,3.04749225]
[1764283893090,3.14,140.94,140.93,0.7]
[1764283893788,3.14,140.94,140.93,7.79572128]
[1764283895490,3.14,140.94,140.93,7.09572128]
[1764283895790,3.83,140.94,140.9,7.09723207]
[1764283895996,0.69,140.93,140.9,7.09723207]
[1764283897292,0.69,140.93,140.9,7.79723207]
[1764283899273,0.69,140.93,140.9,25.54031226]
[1764283905274,3.14,140.94,140.92,7.0962248]
[1764283905474,3.84,140.94,140.92,7.0962248]
[1764283905891,3.14,140.94,140.92,7.0962248]
[1764283906097,3.84,140.94,140.92,7.0962248]
[1764283906595,1.58677639,140.96,140.92,9.44371705]
[1764283906795,0.88671348,140.97,140.93,0.7]
[1764283906982,3.14,140.96,140.94,2.34749225]
[1764283907193,3.14,140.96,140.95,9.44220668]
[1764283907587,3.14,140.96,140.95,10.14220668]
[1764283908779,8.80994492,141.01,140.95,27.87899277]
[1764283909079,3.14,141.0,140.98,2.34749225]
[1764283909292,21.49469405,141.03,140.99,7.09270161]
[1764283909491,3.14,141.0,140.99,7.79270161]
[1764283909706,3.14,141.0,140.98,20.08037852]
[1764283909707,3.14,141.0,140.98,7.09314581]
[1764283909883,3.84,141.0,140.98,7.09314581]
[1764283910973,3.14,141.0,140.97,7.09370788]
[1764283911197,0.7,140.99,140.97,7.09370788]
[1764283911403,3.14,141.0,140.97,7.09370788]
[1764283911603,3.84,141.0,140.97,7.79370788]
[1764283911789,3.84,141.0,140.97,7.09370788]
[1764283911976,0.7,140.99,140.97,7.09370788]
[1764283912996,0.7,140.99,140.95,22.10224341]
[1764283912997,0.7,140.99,140.96,7.09421112]
[1764283913201,0.7,140.99,140.96,7.79421112]
[1764283915398,3.14,141.0,140.96,10.76082351]
[1764283915605,3.14,141.0,140.97,7.79331247]
[1764283915786,3.14,141.0,140.97,11.45992486]
[1764283915984,3.14,141.0,140.98,0.7]
[1764283916196,3.14,140.99,140.98,0.7]
[1764283917100,3.14,140.99,140.98,4.36661239]
[1764283917686,3.14,140.99,140.98,11.45981709]
[1764283921011,3.14,140.99,140.98,7.0932047]
[1764283922114,3.84,140.99,140.96,7.09410313]
[1764283922494,3.84,140.99,140.96,7.79410313]
[1764283922889,3.14,140.99,140.96,7.79410313]
[1764283923205,3.84,140.99,140.96,7.79410313]
[1764283927503,3.84,140.99,140.96,11.46071552]
[1764283928220,3.84,140.99,140.96,7.79410313]
[1764283928521,3.84,140.99,140.96,10.76071552]
[1764283928704,3.84,140.99,140.96,11.46071552]
[1764283929221,3.84,140.99,140.96,7.79410313]
[1764283929404,3.84,140.99,140.96,11.46071552]
[1764283929719,3.84,140.99,140.96,7.79410313]
[1764283931314,3.84,140.99,140.96,11.46071552]
[1764283933216,3.84,140.99,140.96,7.79410313]
[1764283933417,3.84,140.99,140.96,11.46071552]
[1764283933610,3.84,140.99,140.96,7.79410313]
[1764283934115,3.84,140.99,140.96,11.46071552]
[1764283934503,3.84,140.99,140.96,7.79410313]
[1764283934898,3.84,140.99,140.96,11.46071552]
[1764283935211,3.84,140.99,140.96,7.79410313]
[1764283935621,3.84,140.99,140.96,11.46071552]
[1764283935836,3.84,140.99,140.96,7.79410313]
[1764283936308,0.68,140.98,140.96,7.09410313]
[1764283936904,3.14,140.99,140.96,7.79410313]
[1764283937097,3.14,140.99,140.96,7.09410313]
[1764283937098,0.68,140.98,140.96,7.09410313]
[1764283937993,0.68,140.98,140.96,7.79410313]
[1764283938318,3.82,140.99,140.96,7.79410313]
[1764283940229,8.52817858,140.99,140.96,7.79410313]
[1764283940412,3.82,140.99,140.96,7.79410313]
[1764283942529,3.3,140.98,140.96,7.79410313]
[1764283947244,8.01283527,140.98,140.96,7.79410313]
[1764283948324,4.71283527,140.97,140.96,7.79410313]
[1764283951426,4.71283527,140.97,140.96,7.09410313]
[1764283952938,4.71283527,140.97,140.96,7.79410313]
[1764283955209,4.71283527,140.97,140.95,7.09471443]
[1764283955417,8.53283527,140.96,140.9,0.7]
[1764283955613,12.47655731,140.94,140.88,4.36661239]
[1764283955929,25.11880892,140.9,140.85,7.0993735]
[1764283956132,7.85283527,140.89,140.85,7.0993735]
[1764283956332,3.82,140.89,140.85,11.46598589]
[1764283956537,3.82,140.89,140.86,0.7]
[1764283957527,0.68,140.88,140.85,11.46623683]
[1764283959240,3.14,140.89,140.85,10.76623683]
[1764283959439,3.82,140.89,140.86,7.79918183]
[1764283960053,11.94994492,140.92,140.88,3.66661239]
[1764283960252,11.94994492,140.92,140.89,3.66661239]
[1764283960623,11.94994492,140.92,140.9,0.7]
[1764283961532,0.68,140.91,140.88,7.79810157]
[1764283961929,3.98,140.91,140.88,7.09810157]
[1764283963239,3.3,140.91,140.88,7.09810157]
[1764283963445,3.98,140.91,140.88,7.79810157]
[1764283964928,3.3,140.91,140.89,0.7]
[1764283965548,3.3,140.91,140.89,7.79735472]
[1764283969752,0.68,140.9,140.85,22.11569284]
[1764283969928,3.14,140.89,140.85,22.11569284]
[1764283970127,3.14,140.89,140.85,21.41569284]
[1764283970433,3.82,140.89,140.86,25.54736616]
[1764283970631,3.82,140.89,140.86,27.89736905]
[1764283974350,0.68,140.88,140.86,7.09924747]
[1764283975151,3.82,140.89,140.86,7.79924747]
[1764283976631,0.68,140.88,140.85,0.7]
[1764283976834,3.82,140.89,140.86,0.7]
[1764283977156,0.68,140.88,140.85,3.05000289]
[1764283977354,0.68,140.88,140.85,2.35000289]
[1764283977558,3.82,140.89,140.86,0.7]
[1764283978867,0.68,140.88,140.82,16.408864]
[1764283979045,18.65886689,140.86,140.82,0.1]
[1764283979242,5.49000289,140.85,140.82,0.1]
[1764283979438,2.35000289,140.83,140.82,0.1]
[1764283979740,8.80994492,140.82,140.8,0.1]
[1764283979941,16.308864,140.77,140.73,0.1]
[1764283980140,14.29994781,140.76,140.73,0.1]
[1764283980459,3.03000289,140.75,140.73,0.1]
[1764283980755,11.83994781,140.74,140.73,0.1]
[1764283980954,18.94524836,140.74,140.73,0.1]
[1764283981658,11.83994781,140.74,140.73,0.1]
[1764283982238,19.73524547,140.74,140.73,0.1]
[1764283982449,22.08524836,140.74,140.73,0.1]
[1764283985742,9.48994492,140.74,140.73,0.1]
[1764283986073,12.62994492,140.74,140.73,0.1]
[1764283988543,8.80994492,140.74,140.73,0.1]
[1764283988783,11.94994492,140.74,140.73,0.1]
[1764283989272,3.14,140.74,140.73,7.90580544]
[1764283989572,9.45678375,140.78,140.73,10.25580833]
[1764283989882,9.45678375,140.78,140.74,0.7]
[1764283989883,3.14,140.77,140.74,0.7]
[1764283991048,8.80994492,140.78,140.75,7.10479573]
[1764283991349,3.14,140.77,140.75,7.10479573]
[1764283991568,3.14,140.77,140.76,0.66]
[1764283992650,3.91778698,140.8,140.76,0.66]
[1764283992651,8.80994492,140.79,140.76,0.66]
[1764283992963,3.14,140.77,140.76,0.66]
[1764283995178,3.14,140.77,140.75,7.10479573]
[1764283995471,3.14,140.77,140.73,0.1]
[1764283995670,11.15994781,140.75,140.73,0.1]
[1764283995966,15.87811037,140.74,140.73,0.1]
[1764283996348,22.98341092,140.74,140.73,0.1]
[1764283997261,13.52810748,140.74,140.73,0.1]
[1764283997671,3.3,140.76,140.73,10.21580833]
[1764283997870,3.14,140.74,140.73,7.20580544]
[1764283998087,3.14,140.74,140.73,27.32032193]
[1764283998381,3.14,140.74,140.73,27.98032193]
[1764283998582,3.14,140.74,140.73,0.1]
[1764283998583,3.83,140.74,140.73,0.1]
[1764283998788,14.173466,140.74,140.73,0.1]
[1764284000793,11.82346311,140.74,140.73,0.1]
[1764284001868,14.173466,140.74,140.73,0.1]
[1764284003155,11.82346311,140.74,140.73,0.1]
[1764284003377,14.173466,140.74,140.73,0.1]
[1764284004580,22.98341092,140.74,140.73,0.1]
[1764284005167,19.94340803,140.74,140.73,0.1]
[1764284006969,7.99346311,140.74,140.73,0.1]
[1764284007169,12.83810748,140.74,140.73,0.1]
[1764284007875,3.14,140.74,140.73,0.76]
[1764284008079,19.448864,140.74,140.73,0.76]
[1764284008261,19.448864,140.74,140.73,0.1]
[1764284008971,3.14,140.74,140.73,0.1]
[1764284014094,26.55416455,140.74,140.73,0.1]
[1764284014991,19.448864,140.74,140.73,0.1]
[1764284015171,26.55416455,140.74,140.73,0.1]
[1764284015988,19.448864,140.74,140.73,0.76]
[1764284017192,26.55416455,140.74,140.73,0.76]
[1764284018271,4.18803637,140.76,140.73,0.76]
[1764284018493,4.18803637,140.76,140.73,7.86574512]
[1764284018494,3.3,140.76,140.73,7.86574512]
[1764284018769,3.14,140.75,140.73,10.21574801]
[1764284018969,3.14,140.75,140.74,0.66]
[1764284019281,3.14,140.75,140.74,3.01000289]
[1764284019800,8.80994492,140.81,140.74,3.01000289]
[1764284019961,3.14,140.8,140.76,2.35000289]
[1764284020169,3.14,140.8,140.77,2.35000289]
[1764284020412,3.14,140.8,140.78,7.78328171]
[1764284020762,3.14,140.8,140.79,0.68]
[1764284021567,4.69133011,140.82,140.79,0.68]
[1764284021772,3.14,140.81,140.79,0.68]
[1764284022597,3.14,140.81,140.79,7.7822933]
[1764284022976,3.14,140.81,140.8,0.68]
[1764284023696,17.75,140.86,140.8,0.68]
[1764284023697,10.33741078,140.85,140.8,0.68]
[1764284023895,7.84851797,140.84,140.8,0.68]
[1764284024681,4.70851797,140.83,140.81,7.10176834]
[1764284025073,4.70851797,140.83,140.82,0.68]
[1764284025309,7.84851797,140.84,140.82,0.68]
[1764284025691,7.84851797,140.84,140.82,7.78122085]
[1764284026277,3.14,140.84,140.82,7.78122085]
[1764284026494,3.14,140.84,140.83,0.68]
[1764284027478,14.98994781,140.84,140.8,0.68]
[1764284027681,2.35000289,140.81,140.78,0.68]
[1764284027887,8.80994492,140.78,140.73,0.1]
[1764284028079,2.35000289,140.74,140.73,0.1]
[1764284028286,5.49000289,140.74,140.73,0.1]
[1764284028486,6.18000289,140.74,140.73,0.1]
[1764284028678,3.14,140.74,140.73,0.1]
[1764284028995,3.14,140.74,140.73,0.78]
[1764284029373,3.14,140.74,140.73,7.88580544]
[1764284029576,5.58481505,140.78,140.73,10.23580833]
[1764284029881,3.14,140.77,140.75,2.35000289]
[1764284030287,3.14,140.77,140.76,3.03000289]
[1764284031677,3.14,140.77,140.76,10.13429388]
[1764284031877,5.58485558,140.82,140.76,10.13429388]
[1764284032077,3.14,140.81,140.77,0.68]
[1764284034606,3.14,140.81,140.78,7.10328171]
[1764284035178,3.14,140.81,140.79,0.68]
[1764284037102,3.14,140.81,140.79,7.78237522]
[1764284037309,15.65442181,140.84,140.8,0.68]
[1764284037512,3.14,140.83,140.8,0.68]
[1764284037799,3.83,140.83,140.79,7.10237522]
[1764284038001,3.14,140.83,140.79,7.10237522]
[1764284038206,7.50648611,140.83,140.79,7.78237522]
[1764284038397,1.577658,140.82,140.78,7.7831711]
[1764284038605,5.25414411,140.82,140.78,0.68]
[1764284038910,1.577658,140.82,140.78,7.78318314]
[1764284039903,5.25414411,140.82,140.78,7.78318314]
[1764284040895,0.69,140.81,140.78,7.10318314]
[1764284041090,3.14,140.8,140.77,7.7836918]
[1764284041620,3.14,140.8,140.78,0.68]
[1764284045615,3.14,140.8,140.78,7.78326534]
[1764284046903,3.14,140.8,140.79,0.68]
[1764284047411,3.14,140.8,140.78,7.78326534]
[1764284047931,0.887658,140.82,140.79,0.68]
[1764284048116,8.88475295,140.84,140.79,0.68]
[1764284048416,3.14,140.83,140.79,0.68]
[1764284049718,3.14,140.83,140.8,24.85795453]
[1764284050199,3.14,140.83,140.81,0.69]
[1764284050810,3.14,140.83,140.82,7.10126402]
[1764284051010,0.88734294,140.87,140.82,7.10126402]
[1764284051209,3.14,140.86,140.83,4.36648611]
[1764284051397,3.14,140.85,140.84,0.69]
[1764284052094,3.14,140.85,140.84,4.36648611]
[1764284052505,5.58662912,140.9,140.84,4.36648611]
[1764284052713,3.14,140.89,140.86,7.09924747]
[1764284052917,3.14,140.89,140.87,0.68]
[1764284055021,3.14,140.89,140.88,7.09823963]
[1764284055411,3.14,140.89,140.88,7.77823963]
[1764284055610,3.14,140.89,140.85,7.0997515]
[1764284055921,8.80994492,140.86,140.81,0.68]
[1764284056100,12.48643103,140.84,140.81,7.10167393]
[1764284056425,0.88759497,140.83,140.79,0.68]
[1764284056804,1.60759497,140.83,140.79,0.68]
[1764284057599,0.72,140.83,140.8,7.10227272]
[1764284057794,13.37396298,140.84,140.8,7.10227272]
[1764284058018,14.09396298,140.84,140.8,7.78227272]
[1764284059316,10.41747687,140.84,140.8,7.78227272]
[1764284059899,8.80994492,140.82,140.79,7.10263573]
[1764284060111,3.14,140.81,140.79,7.10263573]
[1764284060807,3.14,140.81,140.79,7.78263573]
[1764284061823,3.86,140.81,140.79,7.10263573]
[1764284062013,3.86,140.81,140.78,7.10326203]
[1764284062415,3.86,140.81,140.78,7.78326203]
[1764284062614,3.14,140.81,140.78,7.78326203]
[1764284062818,3.86,140.81,140.78,7.78326203]
[1764284063015,3.14,140.81,140.78,7.78326203]
[1764284066428,3.14,140.81,140.79,0.68]
[1764284067623,3.14,140.81,140.79,7.78275754]
[1764284070917,3.14,140.81,140.79,7.10275754]
[1764284072314,3.14,140.81,140.79,7.78275754]
[1764284081846,3.14,140.81,140.79,0.68]
[1764284093455,3.14,140.81,140.79,7.78275954]
[1764284096050,0.68,140.8,140.76,0.66]
[1764284096353,8.80994492,140.79,140.74,7.76508314]
[1764284096650,7.85404245,140.78,140.74,7.76508314]
[1764284096859,8.80994492,140.77,140.74,0.66]
[1764284097042,9.48994492,140.77,140.74,0.66]
[1764284097238,9.48994492,140.77,140.74,7.76523454]
[1764284097549,9.48994492,140.77,140.74,0.66]
[1764284098856,9.48994492,140.77,140.74,7.7651913]
[1764284100136,0.68,140.76,140.73,0.1]
[1764284100332,3.14,140.75,140.73,0.1]
[1764284100865,3.82,140.75,140.73,0.1]
[1764284102166,3.14,140.75,140.73,0.76]
[1764284102343,3.14,140.75,140.73,0.1]
[1764284102531,4.71448406,140.76,140.73,7.86573101]
[1764284102738,3.14,140.75,140.73,7.86573101]
[1764284102935,3.14,140.75,140.74,0.66]
[1764284103741,3.14,140.75,140.74,3.01275949]
[1764284103945,3.14,140.77,140.74,3.01275949]
[1764284104144,3.14,140.77,140.76,9.45705048]
[1764284104663,3.14,140.77,140.76,7.76429099]
[1764284104958,3.14,140.77,140.76,10.11705048]
[1764284106051,6.44,140.77,140.76,10.11705048]
[1764284106246,3.3,140.77,140.76,10.11705048]
[1764284124875,3.3,140.77,140.76,7.10429099]
[1764284125077,3.96,140.77,140.75,7.10468066]
[1764284125378,3.96,140.77,140.74,7.1050944]
[1764284125379,3.3,140.77,140.74,7.1050944]
[1764284125555,0.66,140.76,140.74,7.1050944]
[1764284125760,3.14,140.75,140.73,9.55847823]
[1764284126152,3.14,140.75,140.73,10.27847823]
[1764284127675,3.14,140.75,140.73,9.55847823]
[1764284127980,3.14,140.75,140.74,7.10530055]
[1764284130458,3.14,140.75,140.74,7.82530055]
[1764284130952,3.96,140.77,140.74,7.82530055]
[1764284131175,3.14,140.75,140.74,7.82530055]
[1764284131877,3.14,140.75,140.74,7.10530055]
[1764284132799,3.3,140.77,140.74,27.94131142]
[1764284133003,4.71364745,140.79,140.76,2.35275949]
[1764284133280,3.14,140.78,140.76,2.35275949]
[1764284133485,3.14,140.78,140.77,0.72]
[1764284133680,3.14,140.78,140.76,3.07275949]
[1764284134192,3.8,140.78,140.76,2.35275949]
[1764284134395,3.14,140.78,140.75,2.35275949]
[1764284134598,3.8,140.78,140.75,3.07275949]
[1764284134773,3.3,140.77,140.76,7.10429099]
[1764284137403,3.96,140.77,140.74,10.17789173]
[1764284137703,3.96,140.77,140.73,0.1]
[1764284137704,0.66,140.76,140.73,0.1]
[1764284138022,3.3,140.77,140.73,3.17275949]
[1764284138370,3.3,140.77,140.74,0.72]
[1764284139274,3.3,140.77,140.74,7.82489596]
[1764284139475,3.3,140.77,140.74,10.17765545]
[1764284139784,3.3,140.77,140.75,0.72]
[1764284141378,3.3,140.77,140.75,7.8246498]
[1764284142604,0.66,140.76,140.75,7.1046498]
[1764284145180,3.8,140.76,140.75,7.1046498]
[1764284148895,3.14,140.76,140.75,9.45740929]
[1764284149102,3.3,140.77,140.75,10.15740929]
[1764284149290,3.3,140.77,140.76,3.05275949]
[1764284149493,3.3,140.77,140.76,10.15705048]
[1764284154096,5.37797886,140.83,140.76,44.22664195]
[1764284154297,3.14,140.82,140.8,2.35275949]
[1764284154498,3.14,140.82,140.81,3.67439046]
[1764284155094,5.37797886,140.83,140.8,4.37439046]
[1764284155298,8.51797886,140.83,140.81,7.10176834]
[1764284157293,3.8,140.83,140.81,7.10176834]
[1764284160621,3.14,140.83,140.81,7.80176834]
[1764284161022,3.8,140.83,140.81,7.80176834]
[1764284161227,3.8,140.83,140.81,10.7761588]
[1764284161722,3.14,140.82,140.81,11.4761588]
[1764284164412,3.14,140.85,140.81,29.23057965]
[1764284164614,3.14,140.85,140.84,3.67439046]
[1764284166335,3.14,140.85,140.84,10.77464606]
[1764284166626,3.14,140.85,140.84,11.47464606]
[1764284167633,3.8,140.85,140.84,10.77464606]
[1764284168207,3.14,140.85,140.84,10.77464606]
[1764284173747,3.81,140.85,140.81,7.10176834]
[1764284174033,0.67,140.84,140.81,7.10176834]
[1764284175912,0.67,140.84,140.8,3.67439046]
[1764284176921,0.67,140.84,140.81,7.10176834]
[1764284178634,0.67,140.84,140.81,10.7761588]
[1764284179026,3.14,140.83,140.81,10.7761588]
[1764284179424,3.81,140.83,140.81,10.7761588]
[1764284180145,3.81,140.83,140.82,3.67439046]
[1764284181238,3.14,140.83,140.82,10.77565448]
[1764284182543,0.67,140.87,140.82,11.44565448]
[1764284182739,0.67,140.87,140.85,3.67439046]
[1764284182740,3.14,140.87,140.85,3.67439046]
[1764284182939,3.14,140.87,140.85,10.77382654]
[1764284183139,3.14,140.87,140.86,3.67439046]
[1764284183343,3.14,140.87,140.86,4.34439046]
[1764284184139,3.14,140.87,140.86,3.67439046]
[1764284185122,3.14,140.87,140.86,10.77363793]
[1764284186642,3.14,140.87,140.86,11.44363793]
[1764284187347,0.67,140.91,140.86,29.19175662]
[1764284187528,3.14,140.9,140.88,3.67439046]
[1764284188047,3.14,140.9,140.89,3.67439046]
[1764284188345,3.14,140.91,140.89,3.67439046]
[1764284188523,3.14,140.91,140.89,4.34439046]
[1764284189324,3.14,140.91,140.9,7.09723207]
[1764284189743,3.81,140.91,140.9,7.09723207]
[1764284191025,3.14,140.91,140.9,7.09723207]
[1764284191350,3.14,140.91,140.9,11.44162253]
[1764284191522,3.14,140.91,140.9,10.77162253]
[1764284195937,3.14,140.91,140.9,7.09723207]
[1764284197963,2.64,140.91,140.9,7.09723207]
[1764284198159,2.64,140.91,140.9,10.77162253]
[1764284198459,2.64,140.91,140.9,7.09723207]
[1764284201161,2.64,140.91,140.9,11.46162253]
[1764284201947,2.64,140.91,140.9,10.77162253]
[1764284202167,2.64,140.91,140.9,7.09723207]
[1764284202350,2.64,140.91,140.9,10.77162253]
[1764284202743,2.64,140.91,140.9,7.09723207]
[1764284202948,3.33,140.91,140.87,7.78874352]
[1764284203148,0.69,140.9,140.87,7.09874352]
[1764284205466,0.69,140.9,140.86,24.84736616]
[1764284206051,0.69,140.9,140.86,28.52175662]
[1764284207461,0.69,140.9,140.86,29.21175662]
[1764284209069,0.69,140.9,140.86,28.52175662]
[1764284211043,1.577154,140.9,140.86,28.52175662]
[1764284211245,0.69,140.89,140.86,24.84736616]
[1764284211443,0.69,140.89,140.86,7.09924747]